[Event "Early-Titled-Tuesday-Blitz-April-02-2024"]
[Site "Chess.com"]
[Date "2024.04.02"]
[Round "3"]
[White "promen1999"]
[Black "IMchanged"]
[Result "1-0"]
[WhiteElo "2891"]
[BlackElo "2667"]
[TimeControl "180+1"]
[EndTime "8:25:58 PDT"]
[Termination "promen1999 won by checkmate"]

1. Nf3 {[%clk 0:02:54.9]} 1... d5 {[%clk 0:02:59.5]} 2. e3 {[%clk 0:02:54]} 2...
Bg4 {[%clk 0:02:59]} 3. c4 {[%clk 0:02:54.9]} 3... e6 {[%clk 0:02:55.3]} 4. Qb3
{[%clk 0:02:54.2]} 4... Nc6 {[%clk 0:02:52.7]} 5. cxd5 {[%clk 0:02:48.2]} 5...
exd5 {[%clk 0:02:53.1]} 6. Qxb7 {[%clk 0:02:41.5]} 6... Bd7 {[%clk 0:02:53.7]}
7. Qb3 {[%clk 0:02:39.4]} 7... Nf6 {[%clk 0:02:54.2]} 8. a3 {[%clk 0:02:36.3]}
8... Bd6 {[%clk 0:02:53]} 9. Nc3 {[%clk 0:02:34.4]} 9... Be6 {[%clk 0:02:50.9]}
10. Bb5 {[%clk 0:02:31.5]} 10... Bd7 {[%clk 0:02:41.4]} 11. Nxd5 {[%clk
0:02:30.4]} 11... O-O {[%clk 0:02:42.1]} 12. Nc3 {[%clk 0:02:23.5]} 12... Rb8
{[%clk 0:02:41.3]} 13. Qc2 {[%clk 0:02:24.1]} 13... Nb4 {[%clk 0:02:36.4]} 14.
axb4 {[%clk 0:02:22.2]} 14... Bxb5 {[%clk 0:02:36.7]} 15. Nxb5 {[%clk
0:02:21.8]} 15... Rxb5 {[%clk 0:02:37.5]} 16. O-O {[%clk 0:02:19.5]} 16... Qb8
{[%clk 0:02:37.3]} 17. d4 {[%clk 0:02:15.5]} 17... Rxb4 {[%clk 0:02:35.1]} 18.
h3 {[%clk 0:02:11.8]} 18... Rc8 {[%clk 0:02:31.7]} 19. Rd1 {[%clk 0:02:12.1]}
19... c5 {[%clk 0:02:31.5]} 20. Qf5 {[%clk 0:02:03.5]} 20... cxd4 {[%clk
0:02:27.8]} 21. Nxd4 {[%clk 0:02:03.9]} 21... Bf8 {[%clk 0:02:24.4]} 22. Ra6
{[%clk 0:01:59.3]} 22... Rc5 {[%clk 0:02:20.2]} 23. Qf3 {[%clk 0:01:58.4]} 23...
Qc8 {[%clk 0:02:20.4]} 24. Ra1 {[%clk 0:01:51]} 24... a5 {[%clk 0:02:16]} 25. b3
{[%clk 0:01:50]} 25... Rd5 {[%clk 0:01:40.6]} 26. Bd2 {[%clk 0:01:47.1]} 26...
Rb8 {[%clk 0:01:37.5]} 27. Rxa5 {[%clk 0:01:47.4]} 27... Rxa5 {[%clk 0:01:34]}
28. Bxa5 {[%clk 0:01:48.3]} 28... Qa6 {[%clk 0:01:29]} 29. Bc3 {[%clk
0:01:46.1]} 29... Rc8 {[%clk 0:01:28.5]} 30. Ba1 {[%clk 0:01:41.8]} 30... Qa2
{[%clk 0:01:25.6]} 31. Nf5 {[%clk 0:01:35.5]} 31... Qxb3 {[%clk 0:01:16.7]} 32.
Nh6+ {[%clk 0:01:20]} 32... Kh8 {[%clk 0:01:08.2]} 33. Bxf6 {[%clk 0:01:10.5]}
33... gxf6 {[%clk 0:01:07.7]} 34. Qxf6+ {[%clk 0:01:05.6]} 34... Bg7 {[%clk
0:01:07.4]} 35. Rd8+ {[%clk 0:01:04]} 35... Rxd8 {[%clk 0:01:07.3]} 36. Qxd8+
{[%clk 0:01:04.4]} 36... Bf8 {[%clk 0:01:08.2]} 37. Qxf8# {[%clk 0:01:04.6]} 1-0

[Event "Early-Titled-Tuesday-Blitz-April-02-2024"]
[Site "Chess.com"]
[Date "2024.04.02"]
[Round "3"]
[White "Zhigalko_Sergei"]
[Black "Yeritsyaan"]
[Result "1-0"]
[WhiteElo "2879"]
[BlackElo "2663"]
[TimeControl "180+1"]
[EndTime "8:26:03 PDT"]
[Termination "Zhigalko_Sergei won by checkmate"]

1. e4 {[%clk 0:03:00.9]} 1... e5 {[%clk 0:03:00.7]} 2. Nf3 {[%clk 0:03:01]} 2...
Nc6 {[%clk 0:03:01.4]} 3. Bc4 {[%clk 0:03:00.3]} 3... Bc5 {[%clk 0:03:00.7]} 4.
b4 {[%clk 0:03:00.5]} 4... Bxb4 {[%clk 0:03:00.8]} 5. c3 {[%clk 0:03:00.7]} 5...
Ba5 {[%clk 0:03:01.5]} 6. d4 {[%clk 0:03:00.8]} 6... d6 {[%clk 0:03:02.1]} 7.
Qb3 {[%clk 0:03:00.8]} 7... Qd7 {[%clk 0:03:02.5]} 8. O-O {[%clk 0:02:59.3]}
8... Bb6 {[%clk 0:02:55.3]} 9. Nbd2 {[%clk 0:02:56.6]} 9... Na5 {[%clk
0:02:54.8]} 10. Qc2 {[%clk 0:02:56]} 10... Nxc4 {[%clk 0:02:54.1]} 11. Nxc4
{[%clk 0:02:56.9]} 11... Ne7 {[%clk 0:02:16.6]} 12. a4 {[%clk 0:02:56.6]} 12...
exd4 {[%clk 0:01:45.8]} 13. cxd4 {[%clk 0:02:51.3]} 13... c6 {[%clk 0:01:39.1]}
14. Ba3 {[%clk 0:02:24.2]} 14... Bc7 {[%clk 0:01:35.3]} 15. e5 {[%clk
0:02:24.3]} 15... dxe5 {[%clk 0:01:14.1]} 16. dxe5 {[%clk 0:02:23.7]} 16... Qf5
{[%clk 0:01:07.9]} 17. Qb2 {[%clk 0:02:14.5]} 17... Nd5 {[%clk 0:01:01.2]} 18.
Rfe1 {[%clk 0:02:07.7]} 18... Nf4 {[%clk 0:00:41]} 19. Nd6+ {[%clk 0:01:58.8]}
19... Bxd6 {[%clk 0:00:40.5]} 20. exd6+ {[%clk 0:01:59.7]} 20... Be6 {[%clk
0:00:31.4]} 21. d7+ {[%clk 0:01:48.4]} 21... Kd8 {[%clk 0:00:20.1]} 22. Qxb7
{[%clk 0:01:38.5]} 22... Qg4 {[%clk 0:00:20.5]} 23. Qxa8+ {[%clk 0:01:38.2]}
23... Kc7 {[%clk 0:00:17.7]} 24. Qxa7+ {[%clk 0:01:33.1]} 24... Kd8 {[%clk
0:00:17.9]} 25. Qb8+ {[%clk 0:01:30.8]} 25... Kxd7 {[%clk 0:00:18.2]} 26. Ne5#
{[%clk 0:01:31.1]} 1-0

[Event "Early-Titled-Tuesday-Blitz-April-02-2024"]
[Site "Chess.com"]
[Date "2024.04.02"]
[Round "3"]
[White "Chessexplained"]
[Black "margarita_2703"]
[Result "1-0"]
[WhiteElo "2542"]
[BlackElo "2312"]
[TimeControl "180+1"]
[EndTime "8:26:04 PDT"]
[Termination "Chessexplained won by resignation"]

1. d4 {[%clk 0:03:00.9]} 1... d5 {[%clk 0:02:58.2]} 2. Nf3 {[%clk 0:02:59]} 2...
Nf6 {[%clk 0:02:55.6]} 3. g3 {[%clk 0:02:56.7]} 3... e6 {[%clk 0:02:53.5]} 4.
Bg2 {[%clk 0:02:56.3]} 4... Be7 {[%clk 0:02:54.2]} 5. c4 {[%clk 0:02:57]} 5...
O-O {[%clk 0:02:55.1]} 6. Nc3 {[%clk 0:02:57.4]} 6... dxc4 {[%clk 0:02:50.9]} 7.
Ne5 {[%clk 0:02:56.6]} 7... Nc6 {[%clk 0:02:32.8]} 8. Bxc6 {[%clk 0:02:55.5]}
8... bxc6 {[%clk 0:02:33.7]} 9. Nxc6 {[%clk 0:02:56]} 9... Qe8 {[%clk
0:02:33.8]} 10. Nxe7+ {[%clk 0:02:55.9]} 10... Qxe7 {[%clk 0:02:34.7]} 11. Qa4
{[%clk 0:02:56.1]} 11... Bb7 {[%clk 0:02:33.4]} 12. f3 {[%clk 0:02:41.6]} 12...
c5 {[%clk 0:02:30.7]} 13. Qa3 {[%clk 0:02:34.7]} 13... Rac8 {[%clk 0:02:26.1]}
14. dxc5 {[%clk 0:02:34.8]} 14... Qxc5 {[%clk 0:02:25.1]} 15. Qxc5 {[%clk
0:02:33.6]} 15... Rxc5 {[%clk 0:02:26]} 16. Be3 {[%clk 0:02:31.2]} 16... Rc7
{[%clk 0:02:23.5]} 17. Kf2 {[%clk 0:02:27.4]} 17... a6 {[%clk 0:02:22.8]} 18.
Rhd1 {[%clk 0:02:25.2]} 18... Nd5 {[%clk 0:02:22.8]} 19. Nxd5 {[%clk 0:02:22.2]}
19... exd5 {[%clk 0:02:23.7]} 20. Bd4 {[%clk 0:02:21.7]} 20... f6 {[%clk
0:02:15.1]} 21. g4 {[%clk 0:02:20.6]} 21... Re8 {[%clk 0:02:12.5]} 22. e3 {[%clk
0:02:20.5]} 22... Rc6 {[%clk 0:02:08.4]} 23. h4 {[%clk 0:02:18.3]} 23... a5
{[%clk 0:02:08.3]} 24. Kg3 {[%clk 0:02:15]} 24... Rce6 {[%clk 0:02:06.3]} 25.
Kf4 {[%clk 0:02:12.3]} 25... a4 {[%clk 0:02:05.3]} 26. Rg1 {[%clk 0:02:07.6]}
26... Bc8 {[%clk 0:02:00.3]} 27. g5 {[%clk 0:01:55.1]} 27... f5 {[%clk
0:01:56.5]} 28. h5 {[%clk 0:01:51.8]} 28... Rf8 {[%clk 0:01:51.7]} 29. Rac1
{[%clk 0:01:49.5]} 29... Ra6 {[%clk 0:01:45.5]} 30. Rc3 {[%clk 0:01:46.9]} 30...
Re6 {[%clk 0:01:43]} 31. Rgc1 {[%clk 0:01:41.5]} 31... Bd7 {[%clk 0:01:42.6]}
32. b3 {[%clk 0:01:39.4]} 32... axb3 {[%clk 0:01:42.2]} 33. axb3 {[%clk
0:01:39.6]} 33... Bb5 {[%clk 0:01:42.6]} 34. bxc4 {[%clk 0:01:34.4]} 34... Bxc4
{[%clk 0:01:43.5]} 35. Ra1 {[%clk 0:01:32.9]} 35... Ra6 {[%clk 0:01:37.3]} 36.
Rxc4 {[%clk 0:01:04.3]} 36... Rxa1 {[%clk 0:01:35.7]} 37. Rc7 {[%clk 0:01:03.9]}
37... Rg1 {[%clk 0:01:17.2]} 38. Rxg7+ {[%clk 0:01:02.7]} 38... Kh8 {[%clk
0:01:17.3]} 39. Rg6+ {[%clk 0:01:02.4]} 1-0

[Event "Early-Titled-Tuesday-Blitz-April-02-2024"]
[Site "Chess.com"]
[Date "2024.04.02"]
[Round "3"]
[White "Khromkin"]
[Black "slidingknight2775"]
[Result "1/2-1/2"]
[WhiteElo "2341"]
[BlackElo "2589"]
[TimeControl "180+1"]
[EndTime "8:26:13 PDT"]
[Termination "Game drawn by agreement"]

1. d4 {[%clk 0:02:56.7]} 1... Nf6 {[%clk 0:02:59]} 2. c4 {[%clk 0:02:56.7]} 2...
g6 {[%clk 0:02:59]} 3. Nf3 {[%clk 0:02:57.4]} 3... Bg7 {[%clk 0:02:58.9]} 4. Nc3
{[%clk 0:02:58.2]} 4... c5 {[%clk 0:02:59.6]} 5. g3 {[%clk 0:02:57.3]} 5... O-O
{[%clk 0:02:53.9]} 6. Bg2 {[%clk 0:02:56.7]} 6... cxd4 {[%clk 0:02:54.5]} 7.
Nxd4 {[%clk 0:02:55.6]} 7... Nc6 {[%clk 0:02:55.2]} 8. O-O {[%clk 0:02:55.7]}
8... Nxd4 {[%clk 0:02:48.2]} 9. Qxd4 {[%clk 0:02:54.8]} 9... d6 {[%clk
0:02:48.9]} 10. Qd2 {[%clk 0:02:54.6]} 10... Be6 {[%clk 0:02:46.5]} 11. b3
{[%clk 0:02:55]} 11... Rb8 {[%clk 0:02:42]} 12. Bb2 {[%clk 0:02:55.4]} 12... a6
{[%clk 0:02:42.4]} 13. Nd5 {[%clk 0:02:54.4]} 13... Bxd5 {[%clk 0:02:40.3]} 14.
Bxd5 {[%clk 0:02:53.7]} 14... b5 {[%clk 0:02:38.9]} 15. Rac1 {[%clk 0:02:52.3]}
15... Qb6 {[%clk 0:02:27.7]} 16. cxb5 {[%clk 0:02:44.8]} 16... axb5 {[%clk
0:02:14.4]} 17. Rc6 {[%clk 0:02:34.7]} 17... Qa7 {[%clk 0:02:11.3]} 18. Bd4
{[%clk 0:02:25.7]} 18... Qd7 {[%clk 0:02:10.3]} 19. Bf3 {[%clk 0:02:20.3]} 19...
Rfc8 {[%clk 0:02:05.7]} 20. Rfc1 {[%clk 0:02:18.9]} 20... Rxc6 {[%clk
0:01:47.3]} 21. Bxc6 {[%clk 0:02:12.4]} 21... Qh3 {[%clk 0:01:47.4]} 22. Bg2
{[%clk 0:02:09.7]} 22... Qd7 {[%clk 0:01:47.1]} 23. Qa5 {[%clk 0:02:06.1]} 23...
Rc8 {[%clk 0:01:46.1]} 24. Rxc8+ {[%clk 0:02:01.5]} 24... Qxc8 {[%clk 0:01:47]}
25. Qa8 {[%clk 0:01:59.3]} 25... Qxa8 {[%clk 0:01:46]} 26. Bxa8 {[%clk
0:01:59.6]} 26... b4 {[%clk 0:01:41.3]} 27. e3 {[%clk 0:01:45]} 27... Nd7 {[%clk
0:01:35.1]} 28. Ba7 {[%clk 0:01:42.5]} 28... Nc5 {[%clk 0:01:33.1]} 29. Kf1
{[%clk 0:01:32.7]} 29... Nd3 {[%clk 0:01:30.2]} 30. Be4 {[%clk 0:01:29.9]} 30...
Nc5 {[%clk 0:01:24.4]} 31. Bc2 {[%clk 0:01:17]} 31... Bc3 {[%clk 0:01:22.4]} 32.
Ke2 {[%clk 0:01:16.8]} 32... Kf8 {[%clk 0:01:21.1]} 33. Bxc5 {[%clk 0:01:10.9]}
33... dxc5 {[%clk 0:01:22]} 34. Kd3 {[%clk 0:01:09.1]} 34... e6 {[%clk
0:01:17.4]} 35. f3 {[%clk 0:01:06.4]} 35... Bf6 {[%clk 0:01:16.5]} 36. Kc4
{[%clk 0:01:03.8]} 36... Be7 {[%clk 0:01:16.8]} 37. e4 {[%clk 0:01:02.5]} 37...
f6 {[%clk 0:01:14.4]} 38. Kd3 {[%clk 0:01:02.7]} 1/2-1/2

[Event "Early-Titled-Tuesday-Blitz-April-02-2024"]
[Site "Chess.com"]
[Date "2024.04.02"]
[Round "3"]
[White "javirec"]
[Black "GM4life"]
[Result "0-1"]
[WhiteElo "2275"]
[BlackElo "2575"]
[TimeControl "180+1"]
[EndTime "8:26:22 PDT"]
[Termination "GM4life won by resignation"]

1. d4 {[%clk 0:03:00.9]} 1... Nf6 {[%clk 0:02:55.6]} 2. Nf3 {[%clk 0:02:59.8]}
2... b6 {[%clk 0:02:55.8]} 3. g3 {[%clk 0:02:57.4]} 3... Bb7 {[%clk 0:02:56.7]}
4. Bg2 {[%clk 0:02:57.6]} 4... e6 {[%clk 0:02:57.2]} 5. O-O {[%clk 0:02:57.7]}
5... Be7 {[%clk 0:02:57.8]} 6. c4 {[%clk 0:02:57.1]} 6... O-O {[%clk 0:02:58.3]}
7. Nc3 {[%clk 0:02:57.5]} 7... Ne4 {[%clk 0:02:57.7]} 8. Qc2 {[%clk 0:02:57.5]}
8... Nxc3 {[%clk 0:02:56.1]} 9. Qxc3 {[%clk 0:02:57.4]} 9... d6 {[%clk
0:02:56.9]} 10. b3 {[%clk 0:02:56.5]} 10... Nd7 {[%clk 0:02:57.3]} 11. Bb2
{[%clk 0:02:56.8]} 11... a5 {[%clk 0:02:57.3]} 12. d5 {[%clk 0:02:49.7]} 12...
e5 {[%clk 0:02:57.2]} 13. Nd2 {[%clk 0:02:48.4]} 13... f5 {[%clk 0:02:56.5]} 14.
f4 {[%clk 0:02:48]} 14... Bf6 {[%clk 0:02:56.3]} 15. fxe5 {[%clk 0:02:48]} 15...
Bxe5 {[%clk 0:02:56.1]} 16. Qc2 {[%clk 0:02:47.8]} 16... Qg5 {[%clk 0:02:49.1]}
17. Nf3 {[%clk 0:02:45.5]} 17... Qe3+ {[%clk 0:02:48.5]} 18. Kh1 {[%clk
0:02:45.2]} 18... Bxb2 {[%clk 0:02:47.3]} 19. Qxb2 {[%clk 0:02:45.4]} 19... Rae8
{[%clk 0:02:45]} 20. Nd4 {[%clk 0:02:41.7]} 20... Qe5 {[%clk 0:02:15.4]} 21. Qd2
{[%clk 0:02:34.6]} 21... Nc5 {[%clk 0:02:10.6]} 22. Qf4 {[%clk 0:02:27.7]} 22...
g6 {[%clk 0:02:08.7]} 23. a3 {[%clk 0:02:24.8]} 23... Bc8 {[%clk 0:01:39.6]} 24.
b4 {[%clk 0:02:21.5]} 24... axb4 {[%clk 0:01:35.3]} 25. axb4 {[%clk 0:02:22.4]}
25... Ne4 {[%clk 0:01:34.6]} 26. Qxe5 {[%clk 0:02:08.4]} 26... dxe5 {[%clk
0:01:28]} 27. Nc6 {[%clk 0:02:08.2]} 27... Nd2 {[%clk 0:01:27.1]} 28. c5 {[%clk
0:01:17.9]} 28... Nxf1 {[%clk 0:01:26]} 29. Rxf1 {[%clk 0:01:18.6]} 29... Bb7
{[%clk 0:01:23.5]} 30. d6 {[%clk 0:01:15.9]} 30... cxd6 {[%clk 0:01:18.9]} 31.
Bd5+ {[%clk 0:01:09]} 31... Kg7 {[%clk 0:01:16.9]} 32. cxd6 {[%clk 0:01:09.6]}
32... Rd8 {[%clk 0:01:14.3]} 33. Ra1 {[%clk 0:00:49.9]} 33... Bxc6 {[%clk
0:01:09.2]} 34. Bxc6 {[%clk 0:00:47.9]} 34... Rxd6 {[%clk 0:01:09.2]} 35. Ra7+
{[%clk 0:00:48.1]} 35... Rf7 {[%clk 0:01:08.7]} 0-1

[Event "Early-Titled-Tuesday-Blitz-April-02-2024"]
[Site "Chess.com"]
[Date "2024.04.02"]
[Round "3"]
[White "mertfelin"]
[Black "Mr_ruthless"]
[Result "0-1"]
[WhiteElo "2276"]
[BlackElo "2506"]
[TimeControl "180+1"]
[EndTime "8:26:23 PDT"]
[Termination "Mr_ruthless won by resignation"]

1. e4 {[%clk 0:03:00.4]} 1... c5 {[%clk 0:02:58]} 2. Nf3 {[%clk 0:03:00.7]} 2...
d6 {[%clk 0:02:53.8]} 3. d4 {[%clk 0:03:01]} 3... cxd4 {[%clk 0:02:54.5]} 4.
Nxd4 {[%clk 0:03:01.6]} 4... Nf6 {[%clk 0:02:55.1]} 5. Nc3 {[%clk 0:03:02.2]}
5... Nc6 {[%clk 0:02:55.4]} 6. Bg5 {[%clk 0:03:01.9]} 6... e6 {[%clk 0:02:48.7]}
7. Qd2 {[%clk 0:03:02.1]} 7... a6 {[%clk 0:02:46.1]} 8. O-O-O {[%clk 0:03:02.4]}
8... Bd7 {[%clk 0:02:45]} 9. Kb1 {[%clk 0:03:02.7]} 9... Be7 {[%clk 0:02:43.4]}
10. Nxc6 {[%clk 0:03:03.1]} 10... Bxc6 {[%clk 0:02:39.8]} 11. f3 {[%clk
0:03:03.5]} 11... b5 {[%clk 0:02:33.6]} 12. h4 {[%clk 0:03:01.3]} 12... b4
{[%clk 0:02:30.3]} 13. Ne2 {[%clk 0:03:00.5]} 13... Qa5 {[%clk 0:02:29]} 14. Nd4
{[%clk 0:02:58.5]} 14... Bd7 {[%clk 0:02:28.8]} 15. Bd3 {[%clk 0:02:41.2]} 15...
Rc8 {[%clk 0:02:16.8]} 16. Nb3 {[%clk 0:02:36.5]} 16... Qb6 {[%clk 0:02:10]} 17.
Be3 {[%clk 0:02:37]} 17... Qb7 {[%clk 0:02:08.8]} 18. Na5 {[%clk 0:02:32]} 18...
Qc7 {[%clk 0:02:08.9]} 19. Qxb4 {[%clk 0:02:31.2]} 19... Rb8 {[%clk 0:02:09.4]}
20. Qd2 {[%clk 0:02:26.9]} 20... Bb5 {[%clk 0:01:49.9]} 21. g4 {[%clk
0:02:17.3]} 21... d5 {[%clk 0:01:40.9]} 22. g5 {[%clk 0:02:01.7]} 22... Nd7
{[%clk 0:01:36.2]} 23. exd5 {[%clk 0:01:59.2]} 23... Bxd3 {[%clk 0:01:36.6]} 24.
cxd3 {[%clk 0:01:57.7]} 24... Bb4 {[%clk 0:01:37]} 25. Qc1 {[%clk 0:01:44.2]}
25... Qxa5 {[%clk 0:01:27.2]} 26. dxe6 {[%clk 0:01:44.7]} 26... fxe6 {[%clk
0:01:27.4]} 27. Qc6 {[%clk 0:01:45.2]} 27... Bc3 {[%clk 0:01:14.2]} 28. Rh2
{[%clk 0:01:44]} 28... Qe5 {[%clk 0:01:01.8]} 29. Rc2 {[%clk 0:01:40.7]} 29...
Bxb2 {[%clk 0:00:56.4]} 30. Ba7 {[%clk 0:01:39]} 30... Rb5 {[%clk 0:00:35]} 31.
a4 {[%clk 0:01:28.9]} 31... Rb3 {[%clk 0:00:32]} 32. Ka2 {[%clk 0:01:15.2]}
32... Ra3+ {[%clk 0:00:31]} 0-1

[Event "Early-Titled-Tuesday-Blitz-April-02-2024"]
[Site "Chess.com"]
[Date "2024.04.02"]
[Round "3"]
[White "Elegance_Riks"]
[Black "Lovetov"]
[Result "1-0"]
[WhiteElo "2780"]
[BlackElo "2544"]
[TimeControl "180+1"]
[EndTime "8:26:29 PDT"]
[Termination "Elegance_Riks won by resignation"]

1. Nf3 {[%clk 0:03:00.9]} 1... Nf6 {[%clk 0:02:56.8]} 2. c4 {[%clk 0:03:01.3]}
2... g6 {[%clk 0:02:55.6]} 3. b3 {[%clk 0:03:00.4]} 3... Bg7 {[%clk 0:02:54.7]}
4. Bb2 {[%clk 0:03:00.9]} 4... O-O {[%clk 0:02:55.6]} 5. g3 {[%clk 0:03:01.3]}
5... c5 {[%clk 0:02:52.5]} 6. Bg2 {[%clk 0:03:01.3]} 6... Nc6 {[%clk 0:02:53]}
7. O-O {[%clk 0:03:00.2]} 7... d5 {[%clk 0:02:53.6]} 8. cxd5 {[%clk 0:02:58.6]}
8... Nxd5 {[%clk 0:02:54.5]} 9. Bxg7 {[%clk 0:02:51.9]} 9... Kxg7 {[%clk
0:02:55.4]} 10. Qc1 {[%clk 0:02:52.4]} 10... Qd6 {[%clk 0:02:51.7]} 11. Nc3
{[%clk 0:02:47.3]} 11... b6 {[%clk 0:02:06.1]} 12. Nxd5 {[%clk 0:02:42.6]} 12...
Qxd5 {[%clk 0:02:07]} 13. d4 {[%clk 0:02:43.1]} 13... cxd4 {[%clk 0:01:49.4]}
14. Ne1 {[%clk 0:02:29.5]} 14... Qe5 {[%clk 0:01:20.5]} 15. Qxc6 {[%clk
0:02:20.9]} 15... Ba6 {[%clk 0:01:20.5]} 16. Nf3 {[%clk 0:02:19.5]} 16... Qxe2
{[%clk 0:01:20]} 17. Nxd4 {[%clk 0:02:19.2]} 17... Qg4 {[%clk 0:01:18.7]} 18.
Rfd1 {[%clk 0:02:15.4]} 18... Rad8 {[%clk 0:01:16]} 19. Nf3 {[%clk 0:02:03.3]}
19... Rxd1+ {[%clk 0:01:03.3]} 20. Rxd1 {[%clk 0:02:02.6]} 20... Rc8 {[%clk
0:01:04.2]} 21. Qa4 {[%clk 0:01:57.9]} 21... Qxa4 {[%clk 0:01:04.6]} 22. bxa4
{[%clk 0:01:58.1]} 22... Rc4 {[%clk 0:01:00.7]} 23. Bf1 {[%clk 0:01:55.1]} 23...
Rxa4 {[%clk 0:01:01.3]} 24. Bxa6 {[%clk 0:01:55.5]} 24... Rxa6 {[%clk
0:01:02.2]} 25. Rd2 {[%clk 0:01:56.1]} 25... b5 {[%clk 0:01:00.9]} 26. Nd4
{[%clk 0:01:54.5]} 26... Rd6 {[%clk 0:00:56.6]} 27. Kf1 {[%clk 0:01:52.1]} 27...
b4 {[%clk 0:00:56.1]} 28. Nb3 {[%clk 0:01:47.6]} 28... Rc6 {[%clk 0:00:54.8]}
29. Rd5 {[%clk 0:01:44.3]} 29... Ra6 {[%clk 0:00:43.7]} 30. Ra5 {[%clk
0:01:43.3]} 30... Rxa5 {[%clk 0:00:44]} 31. Nxa5 {[%clk 0:01:43.7]} 31... Kf6
{[%clk 0:00:43.2]} 32. Nc6 {[%clk 0:01:43.9]} 32... Ke6 {[%clk 0:00:43.5]} 33.
Nxb4 {[%clk 0:01:44.3]} 33... Kd6 {[%clk 0:00:42.2]} 34. Ke2 {[%clk 0:01:44.5]}
34... Kc5 {[%clk 0:00:42.8]} 35. Nc2 {[%clk 0:01:45]} 35... Kc4 {[%clk 0:00:43]}
36. Kd2 {[%clk 0:01:45.6]} 36... a5 {[%clk 0:00:40.4]} 37. Ne3+ {[%clk
0:01:43.3]} 37... Kb4 {[%clk 0:00:41.1]} 38. Kc2 {[%clk 0:01:43.9]} 38... Ka3
{[%clk 0:00:41.7]} 39. Kb1 {[%clk 0:01:44.4]} 39... e6 {[%clk 0:00:41.2]} 40.
Nc4+ {[%clk 0:01:44.4]} 40... Kb4 {[%clk 0:00:41.8]} 41. Ne5 {[%clk 0:01:44.3]}
41... f6 {[%clk 0:00:40.5]} 42. Nc6+ {[%clk 0:01:44.6]} 42... Kb5 {[%clk
0:00:40.7]} 43. Nd4+ {[%clk 0:01:44.7]} 43... Kc4 {[%clk 0:00:41.4]} 44. Nxe6
{[%clk 0:01:45.2]} 44... Kd3 {[%clk 0:00:42.2]} 45. Nf8 {[%clk 0:01:45.5]} 45...
Ke2 {[%clk 0:00:41]} 46. Nxh7 {[%clk 0:01:45.9]} 46... f5 {[%clk 0:00:41.4]} 47.
f4 {[%clk 0:01:43.8]} 47... Kf3 {[%clk 0:00:41.6]} 48. Nf8 {[%clk 0:01:44.1]}
48... Kg2 {[%clk 0:00:41.7]} 49. Nxg6 {[%clk 0:01:44.7]} 49... Kxh2 {[%clk
0:00:42.4]} 50. Kc2 {[%clk 0:01:44.1]} 50... Kxg3 {[%clk 0:00:42.7]} 51. Kb3
{[%clk 0:01:44]} 1-0